bitfinex/quotes_ETHUSD_20250905
["timestamp","ask_amount","ask_price","bid_price","bid_amount"]
[1757082303828,0.4736,4345.6,4344.8,0.21237694]
[1757082303997,0.001,4345.6,4343.8,0.4346]
[1757082304199,0.001,4345.6,4345.0,2.30145537]
[1757082304517,0.001,4345.6,4344.0,0.21237694]
[1757082304683,0.001,4345.6,4343.7,0.21237694]
[1757082304883,2.30218448,4345.6,4344.5,2.30171039]
[1757082305194,0.02876538,4345.5,4344.5,2.30172943]
[1757082305392,2.30133707,4345.3,4343.2,1.697]
[1757082305621,0.02876737,4345.2,4343.3,7.72167386]
[1757082305823,2.30196352,4344.2,4343.4,0.21228044]
[1757082305992,2.30196764,4344.2,4343.4,2.30234378]
[1757082306188,13.75874216,4345.1,4343.4,2.30234378]
[1757082306189,0.4726,4345.1,4344.4,2.30176646]
[1757082306414,2.30143894,4345.2,4344.3,2.30185291]
[1757082306602,0.02876538,4345.5,4343.8,0.21228044]
[1757082306925,2.30133707,4345.3,4343.8,2.30213177]
[1757082307128,2.30151501,4345.0,4343.8,0.21228044]
[1757082307292,2.30169322,4344.7,4343.3,0.21228044]
[1757082307487,0.25892086,4344.9,4342.1,1.697]
[1757082307488,2.3019198,4344.2,4342.6,0.21228044]
[1757082307687,2.3019198,4344.2,4342.1,1.697]
[1757082307688,0.50137465,4344.1,4342.1,1.697]
[1757082307892,0.792,4344.0,4342.1,4.00002932]
[1757082308093,0.02877598,4343.9,4342.3,2.30290458]
[1757082308301,0.02877598,4343.9,4342.2,0.21228044]
[1757082308502,2.30202578,4344.0,4342.2,2.30297376]
[1757082308702,1.62411602,4343.9,4340.9,2.16917968]
[1757082308902,8.998,4343.8,4341.0,0.21281095]
[1757082309103,2.30260885,4342.9,4341.4,2.30339798]
[1757082309285,2.30260885,4342.9,4340.8,0.025]
[1757082309286,0.792,4342.8,4341.8,1e-08]
[1757082309488,3.792,4341.8,4339.1,0.2128718]
[1757082309701,2.30457227,4339.2,4339.0,2.3251]
[1757082310010,2.30457227,4339.2,4336.6,4.08559914]
[1757082310011,2.30473161,4338.9,4338.8,1e-08]
[1757082310191,0.02880914,4338.9,4338.8,1e-08]
[1757082310392,5.206,4340.2,4338.8,1e-08]
[1757082310608,2.30395421,4340.4,4338.8,1.32320001]
[1757082310792,2.30390109,4340.5,4338.9,0.13232]
[1757082311124,2.30418099,4340.0,4338.8,0.21283854]
[1757082311328,5.23479918,4340.4,4338.8,0.21283854]
[1757082311329,5.206,4340.4,4338.8,1e-08]
[1757082311489,0.02880051,4340.2,4338.8,1e-08]
[1757082311904,0.02880051,4340.2,4339.6,0.004]
[1757082312512,0.02879985,4340.3,4339.6,0.004]
[1757082312714,2.30422195,4339.9,4339.6,0.004]
[1757082312913,0.02880317,4339.8,4339.6,0.004]
[1757082313117,0.02879985,4340.3,4339.6,0.004]
[1757082313294,2.30336082,4341.5,4339.6,0.004]
[1757082313488,0.02879255,4341.4,4339.6,0.004]
[1757082313714,8.15629347,4341.3,4339.6,0.004]
[1757082313991,0.792,4340.4,4339.6,0.004]
[1757082314190,2.30430674,4339.7,4339.6,0.004]
[1757082314419,2.33311057,4339.7,4339.6,0.004]
[1757082314759,2.30356105,4341.2,4339.6,1.3272]
[1757082314947,0.025,4341.8,4339.6,1.3272]
[1757082315250,12.49414216,4341.6,4339.6,0.8857]
[1757082315393,0.02879189,4341.5,4339.6,0.004]
[1757082315592,2.30403738,4340.3,4339.6,0.004]
[1757082315898,0.02880051,4340.2,4339.6,0.004]
[1757082316105,5.207,4341.0,4339.6,0.004]
[1757082316291,0.02879587,4340.9,4339.6,0.004]
[1757082316629,5.207,4341.0,4339.6,0.004]
[1757082316817,2.30401486,4340.3,4339.6,0.004]
[1757082317339,0.02880051,4340.2,4339.6,0.004]
[1757082317624,0.02879587,4340.9,4339.6,0.004]
[1757082317832,2.30430674,4339.7,4339.6,0.004]
[1757082318042,2.30425471,4339.8,4339.6,0.004]
[1757082318196,2.33311057,4339.7,4339.6,0.004]
[1757082318551,0.02880383,4339.7,4339.6,0.004]
[1757082318837,3.09630674,4339.7,4339.6,0.004]
[1757082319010,3.66516448,4339.7,4339.6,0.004]
[1757082319213,3.66516448,4339.7,4337.8,0.8817]
[1757082319214,0.792,4339.5,4337.8,0.8817]
[1757082319428,2.30500868,4338.4,4337.8,0.8817]
[1757082319630,2.30462538,4339.1,4337.2,0.65407458]
[1757082319631,0.02881312,4338.3,4337.2,0.4415]
[1757082319801,5.207,4338.9,4336.8,0.8817]
[1757082320134,5.207,4338.9,4336.9,0.4415]
[1757082320135,0.792,4338.8,4336.9,0.4415]
[1757082320346,0.54005391,4339.7,4337.0,0.8817]
[1757082320506,0.1152,4338.6,4338.5,2.30490361]
[1757082320706,0.1152,4338.6,4337.9,2.86195116]
[1757082320937,5.207,4340.0,4337.8,0.8817]
[1757082321105,2.30477197,4338.9,4337.8,0.8817]
[1757082321305,0.0288098,4338.8,4337.8,0.8817]
[1757082321502,5.207,4340.0,4337.8,0.8817]
[1757082321503,0.792,4339.8,4337.8,0.8817]
[1757082322838,2.30397513,4340.4,4339.2,2.30456548]
[1757082323004,5.207,4340.8,4339.3,2.30447903]
[1757082323005,2.30413769,4340.1,4339.3,2.30447903]
[1757082323204,5.207,4340.8,4338.9,2.7461986]
[1757082323403,0.02879719,4340.7,4338.9,0.4415]
[1757082323607,5.232,4341.8,4339.1,2.30462538]
[1757082323804,2.30393655,4340.4,4339.2,1.3232]
[1757082324141,2.30438369,4339.6,4338.7,1.698]
[1757082324307,0.792,4340.5,4338.8,2.30478473]
[1757082324509,0.5999,4340.5,4338.9,1.3232]
[1757082324742,1.698,4341.0,4338.9,1.3232]
[1757082325042,2.30379207,4340.7,4339.6,2.30434688]
[1757082325204,4.00162595,4341.0,4339.6,2.30434688]
[1757082325205,1.698,4341.0,4339.6,0.4415]
[1757082325610,2.30379372,4340.7,4339.6,0.4415]
[1757082325842,2.30388442,4340.5,4339.8,2.30421882]
[1757082326008,1.698,4341.0,4339.5,3.18610166]
[1757082326212,2.3037164,4340.9,4339.5,0.8817]
[1757082326409,2.30312575,4342.0,4339.6,0.4415]
[1757082326717,2.30298783,4342.2,4341.5,2.30334833]
[1757082326917,0.11797779,4342.7,4341.7,2.30324527]
[1757082327117,0.02878459,4342.6,4340.3,2.3039882]
[1757082327342,0.11797779,4342.7,4341.7,2.30324527]
[1757082327729,0.14676172,4342.7,4341.7,3.62644527]
[1757082327933,0.11797779,4342.7,4341.7,1.3232]
[1757082328120,0.11797779,4342.7,4342.5,2.30281546]
[1757082328316,0.11797779,4342.7,4342.1,0.4415]
[1757082328510,0.025,4343.8,4341.7,0.8817]
[1757082328711,2.30224599,4343.6,4341.7,0.8817]
[1757082328911,2.30285792,4342.5,4341.8,2.30319222]
[1757082329110,2.3030173,4342.2,4341.6,1.698]
[1757082329309,2.30282095,4342.5,4341.6,1.698]
[1757082329713,0.05,4342.8,4341.6,1.698]
[1757082329944,0.05,4342.8,4341.7,1.3232]
[1757082330247,0.05,4342.8,4341.8,2.30314288]
[1757082330544,2.35268075,4342.8,4341.8,2.30319222]
[1757082330717,2.30286519,4342.5,4341.7,0.8817]
[1757082330917,0.1144,4342.2,4341.7,0.8817]
[1757082331346,0.07878327,4342.8,4341.2,14.5]
[1757082331562,0.1144,4342.0,4341.6,2.30329826]
[1757082331737,0.1144,4342.0,4341.2,14.6144]
[1757082331939,0.1144,4342.0,4341.5,2.30331694]
[1757082332140,0.1144,4342.0,4341.4,2.74485988]
[1757082332348,0.792,4342.7,4340.9,0.8817]
[1757082332520,0.792,4342.7,4340.0,0.8817]
[1757082332521,0.1144,4341.2,4340.0,0.8817]
[1757082332719,0.792,4342.5,4340.1,0.4415]
[1757082332720,0.1144,4340.7,4340.1,0.4415]
[1757082333154,0.1144,4340.7,4340.2,2.30404128]
[1757082333347,0.1144,4340.7,4340.3,1.3232]
[1757082333752,0.02879388,4341.2,4339.5,2.30440249]
[1757082333920,0.1144,4340.6,4340.4,1.3232]
[1757082334121,0.1144,4340.9,4340.7,2.30377588]
[1757082334342,0.1144,4341.4,4340.8,0.4415]
[1757082334545,0.1144,4341.7,4341.5,2.30334975]
[1757082334763,2.30340382,4343.3,4341.6,3.62649832]
[1757082335023,0.1144,4342.4,4341.8,2.30319222]
[1757082335223,0.1144,4342.4,4341.9,0.4415]
[1757082335433,0.1144,4342.4,4342.0,1.3232]
[1757082335658,0.1144,4342.4,4342.0,3.62627964]
[1757082335820,0.1144,4342.4,4342.0,0.8817]
[1757082336021,0.1144,4342.4,4342.1,1.3232]
[1757082336223,0.051,4342.8,4342.1,1.3232]
[1757082336566,0.1654,4342.8,4342.4,2.30286871]
[1757082336730,0.1654,4342.8,4342.3,0.21351329]
[1757082336924,0.051,4342.8,4342.4,0.4415]
[1757082337142,0.051,4342.8,4342.1,0.21351329]
[1757082337326,0.051,4342.8,4341.7,0.21351329]
[1757082337655,2.30277613,4342.6,4341.8,2.30316102]
[1757082337880,0.051,4342.8,4341.7,0.21351329]
[1757082338053,2.35369825,4342.8,4341.7,2.51671464]
[1757082338235,0.051,4342.8,4341.9,2.30313917]
[1757082338434,2.30273632,4342.7,4341.9,2.30309275]
[1757082338644,0.051,4342.8,4341.9,2.30313652]
[1757082338856,0.051,4342.8,4342.0,1.53671329]
[1757082339037,0.051,4342.8,4342.7,2.3027149]
[1757082339440,0.051,4342.8,4342.7,3.6281149]
[1757082339783,0.025,4343.8,4342.7,1.53891329]
[1757082340059,0.025,4343.8,4342.9,2.30260885]
[1757082340360,0.025,4343.8,4342.9,0.21351329]
[1757082340553,0.025,4343.8,4343.0,0.21351329]
[1757082340751,0.025,4343.8,4342.8,0.21351329]
[1757082340949,0.025,4343.8,4343.3,2.30239598]
[1757082341152,0.025,4343.8,4343.3,2.30234432]
[1757082341357,0.025,4343.8,4343.2,0.21351329]
[1757082341665,0.025,4343.8,4342.7,0.8858]
[1757082341666,2.3022557,4343.6,4342.7,0.8858]
[1757082341969,2.30224205,4343.6,4342.7,3.18849508]
[1757082342142,0.05377664,4343.8,4342.8,0.21351329]
[1757082342341,0.025,4343.8,4342.7,0.8858]
[1757082342540,2.30232827,4343.5,4342.7,0.8858]
[1757082342960,2.30220431,4343.7,4343.0,2.30254839]
[1757082343263,2.3022389,4343.6,4342.8,2.51619392]
[1757082343438,0.025,4343.8,4342.9,2.30256921]
[1757082343644,2.3271824,4343.8,4343.0,2.30251952]
[1757082343844,0.025,4343.8,4342.9,0.21357034]
[1757082344065,0.025,4343.8,4342.7,3.18849046]
[1757082344268,2.30219242,4343.7,4342.8,0.21357034]
[1757082344441,0.025,4343.8,4342.8,0.21357034]
[1757082344642,2.30222531,4343.7,4342.9,2.30260243]
[1757082344969,2.30229194,4343.5,4342.8,0.21357034]
[1757082345268,0.0287773,4343.7,4342.6,0.21357034]
[1757082345464,0.025,4343.8,4342.5,0.8858]
[1757082345766,0.025,4343.8,4342.6,0.21357034]
[1757082345940,0.025,4343.8,4343.7,2.30218477]
[1757082346145,0.025,4343.8,4343.6,0.21357034]
[1757082346340,0.025,4343.8,4343.7,18.12758477]
[1757082346564,0.001,4344.9,4343.7,16.03897034]
[1757082346730,0.001,4344.9,4344.8,2.30160191]
[1757082347050,0.001,4344.9,4343.8,1.3254]
[1757082347250,0.1144,4344.6,4343.8,0.213251]
[1757082347451,0.1144,4344.2,4343.6,0.1144]
[1757082347653,0.1144,4344.2,4343.6,16.91663759]
[1757082347863,0.1144,4344.2,4343.6,14.6144]
[1757082348029,0.1144,4344.2,4343.6,16.91663034]
[1757082348232,0.1144,4344.2,4343.6,0.1144]
[1757082348572,0.1144,4343.6,4342.6,0.4396]
[1757082348866,0.1136,4344.1,4343.4,0.1144]
[1757082349034,2.41560712,4344.1,4343.4,0.1144]
[1757082349434,2.41560712,4344.1,4343.5,2.30224106]
[1757082349435,0.1136,4344.1,4343.5,2.30224106]
[1757082349630,0.1136,4344.1,4343.4,0.1144]
[1757082349889,0.001,4344.9,4343.5,2.30229077]
[1757082350030,0.1144,4344.4,4343.7,2.41658017]
[1757082350230,0.1144,4344.4,4343.7,0.1144]
[1757082350467,0.1144,4344.4,4343.7,0.32781296]
[1757082350663,0.1144,4344.4,4343.9,2.30207877]
[1757082350863,0.1144,4344.4,4344.2,2.30191468]
[1757082351072,0.1144,4344.4,4344.1,0.21341296]
[1757082351365,0.1144,4344.4,4344.0,1.53881296]
[1757082351534,2.30197279,4344.1,4344.0,0.21341296]
[1757082351735,2.30239679,4343.3,4343.2,0.21341296]
[1757082351930,2.30220331,4343.7,4342.4,2.30282495]
[1757082352165,0.02877797,4343.6,4342.9,0.21341296]
[1757082352466,0.02877797,4343.6,4342.2,1.3254]
[1757082352467,0.792,4344.1,4342.2,1.3254]
[1757082352643,2.30260885,4342.9,4342.3,0.21341296]
[1757082352842,2.30197279,4344.1,4342.3,0.21341296]
[1757082353034,2.30260885,4342.9,4342.3,0.21341296]
[1757082353236,2.30254509,4343.1,4342.4,0.21341296]
[1757082353237,2.30250534,4343.1,4342.4,0.21341296]
[1757082353557,1.696,4344.2,4342.8,1.3504]
[1757082353757,2.30214685,4343.8,4343.0,2.3025491]
[1757082353945,2.30224649,4343.6,4343.1,0.21341296]
[1757082354144,3.09376084,4344.5,4343.3,0.2306]
[1757082354463,0.792,4344.2,4342.8,0.025]
[1757082354672,0.792,4344.0,4342.8,0.025]
[1757082354971,2.30260885,4342.9,4342.8,0.025]
[1757082355174,6.883,4343.9,4342.8,0.025]
[1757082355467,2.3024409,4343.3,4342.9,0.21449094]
[1757082355690,0.02877664,4343.8,4343.0,0.2144875]
[1757082355836,0.02877664,4343.8,4342.8,0.025]
[1757082356036,0.2012543,4343.8,4342.8,0.025]
[1757082356237,0.17247766,4343.8,4342.9,0.21468133]
[1757082356474,2.30235769,4343.4,4343.0,0.21468133]
[1757082356669,1.696,4343.9,4343.1,1.10048133]
[1757082356881,0.39145322,4344.4,4343.2,0.21468133]
[1757082357081,2.30207712,4344.0,4343.3,0.21468133]
[1757082357238,2.30186681,4344.3,4343.4,0.21468133]
[1757082357441,1.93616911,4343.7,4343.5,0.21468133]
[1757082357641,1.93616911,4343.7,4343.1,1.3254]
[1757082357642,2.30195678,4344.2,4343.6,0.21468745]
[1757082357842,0.001,4344.9,4343.7,0.21468745]
[1757082358042,0.001,4344.9,4343.8,0.21468745]
[1757082358238,0.001,4344.9,4343.5,1.3254]
[1757082358239,2.30167794,4344.7,4343.9,2.51676305]
[1757082358469,0.001,4344.9,4344.2,2.30189146]
[1757082358672,0.001,4344.9,4344.3,0.21468745]
[1757082358877,2.30256221,4344.9,4344.4,0.21468745]
[1757082359041,0.001,4344.9,4344.5,0.21468745]
[1757082359242,0.001,4344.9,4344.6,1.54008745]
[1757082359476,0.001,4344.9,4344.7,0.21468745]
[1757082359675,0.001,4344.9,4344.8,0.21468745]
[1757082359846,2.30254894,4344.9,4344.8,0.21468745]
[1757082360043,0.001,4344.9,4343.8,2.5818]
[1757082360379,2.30202578,4344.0,4343.9,0.2145582]
[1757082360565,13.00615756,4344.2,4342.9,0.2145582]
[1757082360745,2.30250282,4343.1,4343.0,0.2145582]
[1757082360945,2.30197279,4344.1,4342.8,0.025]
[1757082361147,13.00615756,4344.2,4342.9,1.54004442]
[1757082361447,2.30247158,4343.2,4343.0,0.21464442]
[1757082361674,0.1144,4343.3,4343.1,0.21464442]
[1757082361875,0.1144,4343.3,4343.2,0.21464442]
[1757082362280,0.0752,4343.8,4343.2,0.21464442]
[1757082362281,0.0752,4343.8,4343.2,1.65444442]
[1757082362492,0.0287773,4343.7,4342.8,0.025]
[1757082362649,0.0287773,4343.7,4342.9,0.21469145]
[1757082362858,2.37734135,4343.8,4342.9,0.21469145]
[1757082362859,0.0752,4343.8,4343.0,1.54009145]
[1757082363159,0.0752,4343.8,4343.4,2.30233573]
[1757082363361,0.0752,4343.8,4343.5,0.21469145]
[1757082363603,0.0752,4343.8,4343.6,0.21469145]
[1757082363787,0.0752,4343.8,4343.7,0.21469145]
[1757082363990,2.37733177,4343.8,4343.7,0.21469145]
[1757082364314,0.0752,4343.8,4343.7,0.65429145]
[1757082364496,0.0752,4343.8,4343.7,1.54009145]
[1757082364658,0.025,4344.8,4343.7,1.6941006]
[1757082364868,0.025,4344.8,4343.8,0.65429145]
[1757082365203,0.02877068,4344.7,4343.9,0.21469145]
[1757082365503,0.02877068,4344.7,4344.0,0.21469145]
[1757082365705,0.02877068,4344.7,4343.3,0.8858]
[1757082365706,2.3019654,4344.2,4344.1,0.21469145]
[1757082366000,0.025,4344.8,4344.1,0.21469145]
[1757082366212,2.30186681,4344.3,4344.2,0.21469145]
[1757082366571,13.49529784,4344.3,4342.8,0.025]
[1757082366810,2.30255583,4343.0,4342.9,0.21512308]
[1757082366988,5.176,4343.3,4342.9,0.21512308]
[1757082367188,13.00615756,4343.6,4343.0,0.21512308]
[1757082367366,13.00615756,4343.6,4342.8,0.025]
[1757082367367,5.20377863,4343.5,4342.8,0.025]
[1757082367703,2.30255583,4343.0,4342.9,0.21516491]
[1757082368064,2.30255583,4343.0,4342.8,0.025]
[1757082368266,13.00615756,4343.1,4342.0,0.4]
[1757082368599,1.696,4343.6,4342.1,1.3254]
[1757082368600,2.30248539,4343.2,4342.1,1.3254]
[1757082368902,0.02877863,4343.5,4342.1,1.3254]
[1757082369073,2.3024498,4343.2,4343.1,0.004]
[1757082369273,15.33738798,4343.2,4343.1,0.004]
[1757082369588,2.30303309,4342.1,4342.0,0.4]
[1757082369786,2.30303309,4342.1,4340.3,0.9002]
[1757082369787,19.90394547,4342.1,4340.3,0.9002]
[1757082369987,19.90394547,4342.1,4338.5,2.3048932]
[1757082369988,2.30345748,4341.3,4339.1,1.3541]
[1757082370191,5.20179388,4341.2,4339.8,0.9002]
[1757082370363,5.173,4341.5,4339.8,0.9002]
[1757082370567,2.30326166,4341.7,4340.9,3.65773214]
[1757082370762,1.696,4342.1,4341.1,2.30356361]
[1757082370968,2.30308613,4342.0,4341.0,2.30361667]
[1757082371188,2.30308613,4342.0,4340.9,1.72237321]
[1757082371189,2.30255898,4343.0,4341.2,2.30351055]
[1757082371394,13.00615756,4342.6,4341.1,1.3541]
[1757082371609,5.172,4342.7,4341.1,1.3541]
[1757082371894,0.02878459,4342.6,4341.1,1.49201]
[1757082372211,2.30283537,4342.5,4341.2,1.3541]
[1757082372537,0.1144,4342.7,4342.2,2.30295916]
[1757082372699,0.1144,4342.7,4342.3,1.3541]
[1757082373013,13.03494083,4342.8,4341.8,0.025]
[1757082373216,1.30349408,4342.7,4341.8,0.025]
[1757082373418,13.00615756,4342.1,4341.8,0.025]
[1757082373591,2.30313917,4341.9,4341.8,0.025]
[1757082373790,5.17,4342.0,4341.8,0.025]
[1757082374104,5.17,4342.2,4341.8,0.025]
[1757082374309,2.30313917,4341.9,4341.8,0.025]
[1757082374933,2.3319284,4341.9,4341.8,0.025]
[1757082375319,7.47213917,4341.9,4341.8,0.025]
[1757082376197,1.697,4342.0,4340.8,0.025]
[1757082376399,2.30361703,4341.0,4340.8,0.025]
[1757082376620,5.168,4341.1,4340.8,0.025]
[1757082376838,1.6962,4342.0,4340.9,1.3541]
[1757082377137,5.168,4342.2,4341.0,0.4539]
[1757082377427,7.47102462,4342.2,4341.0,0.4539]
[1757082377623,5.167,4342.3,4341.1,0.9002]
[1757082377823,13.00615756,4342.7,4341.2,0.4539]
[1757082377824,5.167,4342.4,4341.2,0.4539]
[1757082378028,2.30323268,4341.8,4341.2,0.4539]
[1757082378224,13.00615756,4342.3,4341.2,0.4539]
[1757082378403,2.04760652,4342.2,4341.2,0.4539]
[1757082378594,0.02878791,4342.1,4340.8,0.025]
[1757082378793,0.792,4342.0,4340.8,0.025]
[1757082379035,13.00615756,4341.6,4340.8,0.025]
[1757082379222,15.3098273,4340.9,4340.8,0.025]
[1757082379402,22.23717025,4340.9,4340.8,0.025]
[1757082379597,17.07117025,4340.9,4340.8,0.025]
[1757082379820,22.23717025,4340.9,4340.8,0.025]
[1757082380330,23.02917025,4340.9,4340.8,1e-08]
[1757082380630,0.792,4340.7,4338.8,0.004]
[1757082380816,2.30473161,4338.9,4338.8,0.004]
[1757082381128,7.46973161,4338.9,4338.8,0.004]
[1757082381326,7.46873161,4338.9,4338.8,0.004]
[1757082381634,1.697,4339.2,4338.8,0.004]
[1757082381830,5.164,4339.1,4338.8,0.004]
[1757082382130,3.0,4340.2,4338.9,1.3541]
[1757082382131,5.164,4339.4,4338.9,1.3541]
[1757082382295,1.697,4340.2,4339.0,1.3541]
[1757082382503,1.697,4342.5,4339.1,3.0511]
[1757082382828,15.309534,4341.5,4339.2,1.3541]
[1757082383128,13.00615756,4340.8,4339.3,1.3541]
[1757082383328,13.00615756,4340.1,4339.3,0.9002]
[1757082383531,5.19180184,4340.0,4338.8,0.004]
[1757082383698,5.163,4340.0,4338.8,0.004]
[1757082383901,13.00615756,4339.4,4338.8,0.004]
[1757082384123,0.792,4339.2,4338.8,0.004]
[1757082384308,2.30473161,4338.9,4338.8,0.004]
[1757082384507,0.02880914,4338.9,4336.6,0.9032]
[1757082384830,2.30547121,4337.6,4336.7,0.4539]
[1757082385128,5.162,4337.5,4336.7,0.4539]
[1757082385433,1.697,4338.1,4336.7,0.4539]
[1757082385630,5.161,4338.2,4336.8,1.03591]
[1757082385831,13.00615756,4338.9,4336.9,0.4539]
[1757082386146,13.00615756,4337.2,4335.4,1.59315027]
[1757082386300,2.30601737,4336.5,4335.6,0.4539]
[1757082386496,5.161,4336.4,4335.6,0.4539]
[1757082386731,5.161,4336.3,4335.4,0.9002]
[1757082386933,13.00615756,4336.0,4334.9,0.4539]
[1757082387117,6.88782907,4335.9,4334.6,0.9002]
[1757082387319,5.16,4335.8,4334.6,0.9002]
[1757082387521,5.161,4335.7,4334.6,1.3541]
[1757082387722,1.698,4337.0,4334.9,1.49201]
[1757082387899,0.69339873,4338.5,4334.9,1.49201]
[1757082387900,5.16,4337.2,4335.0,1.3541]
[1757082388101,2.383,4337.1,4335.1,1.3541]
[1757082388340,2.30650514,4335.6,4335.1,1.3541]
[1757082388511,2.30600714,4336.5,4335.1,1.3541]
[1757082388698,5.16,4336.4,4335.6,2.30648543]
[1757082388904,5.30539291,4337.7,4334.8,0.025]
[1757082388905,13.00615756,4337.9,4336.6,2.30594862]
[1757082389106,2.30521186,4338.0,4336.8,2.30584762]
[1757082389415,5.16,4337.9,4336.7,1.3541]
[1757082389819,13.00615756,4338.4,4336.8,1.3541]
[1757082390133,15.31119142,4338.4,4337.4,2.30549119]
[1757082390300,2.30466236,4339.1,4336.1,1.698]
[1757082390301,5.159,4339.0,4337.5,1.3541]
[1757082390502,2.30508589,4338.3,4337.5,1.3541]
[1757082390728,2.3052535,4338.0,4337.5,1.3541]
[1757082390914,18.16515756,4338.4,4336.9,0.9002]
[1757082391126,2.3055668,4337.4,4336.9,0.9002]
[1757082391301,2.30572444,4337.1,4336.2,2.30612712]
[1757082391502,13.03497932,4337.0,4335.5,0.69295827]
[1757082391812,2.30595397,4336.6,4335.3,0.004]
[1757082392026,13.00615756,4336.3,4335.3,0.004]
[1757082392407,2.30625743,4336.1,4335.3,0.004]
[1757082392607,13.00615756,4336.3,4335.3,0.004]
[1757082392828,5.157,4336.9,4335.4,1.3541]
[1757082393132,14.70415756,4337.7,4336.2,0.1152]
[1757082393133,0.1152,4337.0,4336.2,0.1152]
[1757082393322,0.1152,4337.0,4336.2,1.4693]
[1757082393524,0.1152,4337.0,4336.2,0.1152]
[1757082393711,1.698,4339.2,4336.3,1.3541]
[1757082393914,13.00615756,4339.1,4336.4,8.75010995]
[1757082394103,13.00615756,4338.4,4336.5,0.4539]
[1757082394444,13.00615756,4337.3,4335.7,0.4539]
[1757082394736,5.156,4337.2,4336.1,0.69284304]
[1757082394937,5.156,4337.2,4334.4,1.698]
[1757082394938,13.00615756,4336.6,4334.4,1.698]
[1757082395111,0.792,4335.7,4334.6,0.4539]
[1757082395311,13.00615756,4336.0,4334.6,0.4539]
[1757082395539,18.16215756,4336.0,4334.6,0.4539]
[1757082395739,2.30646147,4335.7,4334.6,0.4539]
[1757082395907,2.30659224,4335.4,4334.6,0.4539]
[1757082396107,2.30659224,4335.4,4334.5,0.9002]
[1757082396307,0.792,4335.3,4333.8,0.025]
[1757082396616,5.155,4335.2,4334.3,0.4539]
[1757082396927,0.02883439,4335.1,4334.1,0.4539]
[1757082397128,13.00615756,4336.1,4334.2,0.9002]
[1757082397439,0.02882841,4336.0,4334.9,0.4539]
[1757082397612,0.02881844,4337.5,4334.9,1.3541]
[1757082397816,0.0288191,4337.4,4335.0,1.3541]
[1757082398014,0.0288191,4337.4,4334.8,0.025]
[1757082398015,5.154,4337.4,4335.1,1.3541]
[1757082398218,2.30568813,4337.1,4335.1,1.3541]
[1757082398420,2.30632133,4336.0,4335.1,1.3541]
[1757082398621,2.30626026,4336.1,4335.1,3.66085041]
[1757082398821,0.02882376,4336.7,4335.2,2.30668568]
[1757082399146,0.02882376,4336.7,4335.1,1.3541]
[1757082399147,2.30613083,4336.3,4335.1,1.3541]
[1757082399349,2.3057804,4337.0,4335.2,1.3038]
[1757082399647,1.699,4338.6,4335.3,1.3038]
[1757082399648,12.55048567,4338.2,4335.3,1.3038]
[1757082399805,0.02881445,4338.1,4335.3,0.8534]
[1757082400010,12.55048567,4338.2,4335.4,1.3038]
[1757082400011,5.153,4338.0,4335.4,1.3038]
[1757082400206,0.02881578,4337.9,4335.5,1.3038]
[1757082400444,2.30547274,4337.6,4335.5,1.3038]
[1757082400642,12.55048567,4338.2,4336.7,2.30589349]
[1757082400947,5.18081445,4338.1,4336.7,1.3038]
[1757082401158,2.30589111,4336.8,4336.0,1.3038]
[1757082401315,2.3062383,4336.1,4335.2,0.8534]
[1757082401656,2.30653493,4335.6,4334.4,0.69308955]
[1757082401816,2.30606995,4336.4,4334.7,0.4504]
[1757082402012,5.17982641,4336.3,4334.9,0.8534]
[1757082402211,5.151,4336.8,4335.0,0.4504]
[1757082402421,0.02882376,4336.7,4335.0,0.4504]
[1757082402623,0.792,4336.5,4335.0,0.4504]
[1757082402810,5.17982575,4336.4,4335.0,0.4504]
[1757082403014,5.151,4336.3,4334.9,0.8534]
[1757082403231,0.02882708,4336.2,4334.9,0.8534]
[1757082403445,0.02882774,4336.1,4334.9,0.8534]
[1757082403645,0.1152,4335.4,4334.9,0.8534]
[1757082403846,12.55048567,4336.0,4334.8,0.025]
[1757082404011,0.1152,4335.0,4334.8,0.025]
[1757082404412,12.55048567,4336.4,4334.9,0.4504]
[1757082404647,12.55048567,4336.4,4334.8,0.025]
[1757082404648,5.17782774,4336.1,4334.8,0.025]
[1757082404871,5.149,4336.1,4334.8,0.025]
[1757082405238,2.30636725,4335.9,4335.0,2.30675493]
[1757082405417,2.30653801,4335.6,4334.2,0.8284]
[1757082405755,2.30653801,4335.6,4334.1,0.4504]
[1757082405756,2.30673756,4335.2,4334.4,2.3071243]
[1757082405961,2.30673756,4335.2,4334.1,0.4504]
[1757082405962,2.30621987,4336.1,4334.6,2.30701739]
[1757082406261,5.148,4336.0,4334.7,0.4504]
[1757082406413,6.847,4336.2,4334.7,0.4504]
[1757082406618,0.792,4336.0,4333.9,2.30739057]
[1757082406844,0.02882907,4335.9,4334.0,0.4504]
[1757082407148,2.30648583,4335.6,4334.0,0.4504]
[1757082407463,2.30697959,4334.7,4334.0,2.75773117]
[1757082407628,2.30707117,4334.5,4333.8,0.025]
[1757082407946,2.30627306,4336.0,4334.0,2.30730165]
[1757082408145,0.792,4335.8,4334.5,2.30702958]
[1757082408355,0.792,4335.4,4333.8,0.8784]
[1757082408519,2.3073904,4334.0,4333.8,0.025]
[1757082408737,2.30717762,4334.3,4333.8,0.025]
[1757082409046,0.02883972,4334.3,4333.8,0.025]
[1757082409243,2.30739057,4333.9,4333.8,0.025]
[1757082409445,2.30632678,4335.9,4333.8,0.025]
[1757082409753,2.30711728,4334.5,4333.8,2.33641219]
[1757082410067,0.02883838,4334.5,4333.8,0.029]
[1757082410255,5.17383838,4334.5,4333.8,2.33642874]
[1757082410456,1.699,4334.9,4333.8,0.029]
[1757082410767,3.001,4336.0,4333.9,1.3038]
[1757082410768,2.30636784,4335.9,4333.9,1.3038]
[1757082410937,0.001,4336.0,4334.4,2.3071244]